bitfinex-derivatives/quotes_BTCF0:USTF0_20250912
["timestamp","ask_amount","ask_price","bid_price","bid_amount"]
[1757681834426,3.4830832,115250.0,115240.0,0.004]
[1757681835124,0.02261,115230.0,115220.0,0.39461]
[1757681835323,1.06364854,115230.0,115220.0,0.39461]
[1757681835524,1.08800547,115230.0,115220.0,0.39461]
[1757681836322,1.08800547,115230.0,115220.0,0.39761]
[1757681836522,1.08900547,115230.0,115220.0,0.40461]
[1757681839525,1.09160547,115230.0,115220.0,0.40461]
[1757681842437,1.22914474,115230.0,115220.0,0.3708]
[1757681842732,1.10478547,115230.0,115220.0,0.3708]
[1757681846834,1.1048791,115230.0,115220.0,0.3708]
[1757681849733,1.22923837,115230.0,115220.0,0.3708]
[1757681850338,1.47923837,115230.0,115220.0,0.3708]
[1757681850536,1.3548791,115230.0,115220.0,0.3708]
[1757681851528,1.3545991,115230.0,115220.0,0.3708]
[1757681852529,0.5625591,115230.0,115220.0,0.3708]
[1757681852830,1.3544791,115230.0,115220.0,0.3708]
[1757681853237,1.3544791,115230.0,115220.0,0.01]
[1757681853940,0.5625591,115230.0,115220.0,0.01]
[1757681854335,1.3543991,115230.0,115220.0,0.01]
[1757681855343,1.38564295,115230.0,115220.0,0.01]
[1757681856438,1.3543991,115230.0,115220.0,0.01]
[1757681856636,1.74644295,115230.0,115220.0,0.01]
[1757681858140,1.7151991,115230.0,115220.0,0.01]
[1757681858538,1.74644295,115230.0,115220.0,0.01]
[1757681859342,1.49644295,115230.0,115220.0,0.01]
[1757681860042,0.03058,115210.0,115200.0,0.3508]
[1757681860342,0.03471,115200.0,115190.0,0.3961]
[1757681860527,0.31673587,115200.0,115190.0,0.3961]
[1757681862031,0.38514598,115200.0,115190.0,0.3961]
[1757681862237,0.38514598,115200.0,115190.0,0.3991]
[1757681862537,0.38614598,115200.0,115190.0,0.4031]
[1757681864435,0.51050525,115200.0,115190.0,0.4031]
[1757681864636,0.51050525,115200.0,115190.0,0.38956]
[1757681865241,0.48605469,115200.0,115190.0,0.3678]
[1757681865444,0.51048159,115200.0,115190.0,0.3678]
[1757681866432,0.51308159,115200.0,115190.0,0.3678]
[1757681871653,1.30492159,115200.0,115190.0,0.3678]
[1757681871846,1.30492159,115200.0,115190.0,0.38956]
[1757681875752,1.30492159,115200.0,115190.0,0.02876]
[1757681876751,0.51308159,115200.0,115190.0,0.02876]
[1757681876949,1.18056232,115200.0,115190.0,0.02876]
[1757681877251,1.16738232,115200.0,115190.0,0.65322]
[1757681877453,0.37554232,115200.0,115190.0,0.65322]
[1757681877650,1.16738232,115200.0,115190.0,0.65322]
[1757681878052,0.37554232,115200.0,115190.0,0.65322]
[1757681878250,1.16738232,115200.0,115190.0,0.65322]
[1757681878757,0.91866378,115200.0,115190.0,0.65322]
[1757681878947,1.16738232,115200.0,115190.0,0.65322]
[1757681880354,0.12682378,115200.0,115190.0,0.65322]
[1757681880553,1.16738232,115200.0,115190.0,0.65322]
[1757681883448,1.30079159,115200.0,115190.0,0.40322]
[1757681883649,1.30079159,115200.0,115190.0,0.38956]
[1757681884557,1.17643232,115200.0,115190.0,0.38956]
[1757681886462,1.17643232,115200.0,115190.0,0.02876]
[1757681887761,1.15200542,115200.0,115190.0,0.02876]
[1757681888058,1.27636469,115200.0,115190.0,0.02876]
[1757681889059,1.30080471,115200.0,115190.0,0.02876]
[1757681889456,1.27636469,115200.0,115190.0,0.02876]
[1757681889655,1.30081342,115200.0,115190.0,0.02876]
[1757681890562,1.30081342,115200.0,115190.0,0.007]
[1757681890960,1.30081342,115200.0,115190.0,0.02863]
[1757681891364,1.30081342,115200.0,115190.0,0.007]
[1757681891861,1.30081342,115200.0,115190.0,0.02863]
[1757681892461,1.48775833,115200.0,115190.0,0.02863]
[1757681895570,0.69591833,115200.0,115190.0,0.02863]
[1757681895768,1.48775833,115200.0,115190.0,0.02863]
[1757681896972,1.48775833,115200.0,115190.0,0.007]
[1757681897665,1.48775833,115200.0,115190.0,0.02863]
[1757681898874,0.69591833,115200.0,115190.0,0.02863]
[1757681899077,1.48771833,115200.0,115190.0,0.02863]
[1757681900173,1.48771833,115200.0,115190.0,0.38943]
[1757681901383,0.69591833,115200.0,115190.0,0.38943]
[1757681901677,1.47866833,115200.0,115190.0,0.40309]
[1757681902676,0.68686833,115200.0,115190.0,0.40309]
[1757681902878,1.47866833,115200.0,115190.0,0.40309]
[1757681903077,1.48771833,115200.0,115190.0,0.40309]
[1757681905475,1.48767833,115200.0,115190.0,0.40309]
[1757681909384,1.47862833,115200.0,115190.0,0.40309]
[1757681909590,0.50019409,115200.0,115190.0,0.40309]
[1757681909887,1.29195409,115200.0,115190.0,0.40309]
[1757681911789,0.50019409,115200.0,115190.0,0.40309]
[1757681912087,1.29195409,115200.0,115190.0,0.40309]
[1757681915489,0.50019409,115200.0,115190.0,0.40309]
[1757681915690,1.29191409,115200.0,115190.0,0.40309]
[1757681920194,1.30105409,115200.0,115190.0,0.38943]
[1757681920396,1.48772833,115200.0,115190.0,0.38943]
[1757681925000,1.48772833,115200.0,115190.0,0.40235]
[1757681926002,0.69600833,115200.0,115190.0,0.40235]
[1757681926195,1.48768833,115200.0,115190.0,0.40235]
[1757681926597,1.30101409,115200.0,115190.0,0.40235]
[1757681927602,1.48768833,115200.0,115190.0,0.40235]
[1757681931101,0.69600833,115200.0,115190.0,0.40235]
[1757681931308,1.48760833,115200.0,115190.0,0.40235]
[1757681935702,0.69600833,115200.0,115190.0,0.40235]
[1757681935907,1.48756833,115200.0,115170.0,0.37471]
[1757681936209,0.39601,115190.0,115180.0,0.02109]
[1757681936409,0.42045873,115190.0,115180.0,0.02109]
[1757681937206,0.79380721,115190.0,115180.0,0.02109]
[1757681937705,0.42045873,115190.0,115180.0,0.02109]
[1757681938011,0.79480721,115190.0,115180.0,0.02309]
[1757681939216,0.79480721,115190.0,115180.0,0.02509]
[1757681940408,0.79740721,115190.0,115180.0,0.02509]
[1757681940610,0.81724015,115190.0,115180.0,0.02509]
[1757681940811,0.81724015,115190.0,115180.0,0.004]
[1757681941620,1.60880015,115190.0,115180.0,0.02509]
[1757681942811,1.24800015,115190.0,115180.0,0.02509]
[1757681948618,1.60880015,115190.0,115180.0,0.02509]
[1757681949712,1.23545167,115190.0,115180.0,0.02509]
[1757681949912,1.60880015,115190.0,115180.0,0.02509]
[1757681953924,1.60876015,115190.0,115180.0,0.02509]
[1757681954423,1.48433559,115190.0,115180.0,0.02509]
[1757681959925,1.48433559,115190.0,115180.0,0.004]
[1757681961025,1.48433559,115190.0,115180.0,0.02509]
[1757681961622,0.02203,115170.0,115160.0,0.05266034]
[1757681961818,1.43633392,115170.0,115160.0,0.03875034]
[1757681962823,1.43633392,115170.0,115160.0,0.04075034]
[1757681963121,1.43733392,115170.0,115160.0,0.04275034]
[1757681964323,1.31287196,115170.0,115160.0,0.04275034]
[1757681964930,1.31287196,115170.0,115160.0,0.05654034]
[1757681967127,0.52139196,115170.0,115160.0,0.05654034]
[1757681967631,1.31287196,115170.0,115160.0,0.05654034]
[1757681967833,0.95207196,115170.0,115160.0,0.05654034]
[1757681969721,0.16059196,115170.0,115160.0,0.05654034]
[1757681969927,0.95207196,115170.0,115160.0,0.05654034]
[1757681970930,1.07653392,115170.0,115160.0,0.04275034]
[1757681972739,0.82761,115170.0,115160.0,0.04275034]
[1757681972935,1.07653392,115170.0,115160.0,0.04275034]
[1757681973335,1.07913392,115170.0,115160.0,0.04275034]
[1757681976541,1.43993392,115170.0,115160.0,0.04275034]
[1757681978942,1.31547196,115170.0,115160.0,0.04275034]
[1757681979448,1.43993392,115170.0,115160.0,0.04275034]
[1757681980944,0.64845392,115170.0,115160.0,0.04275034]
[1757681981239,1.43989392,115170.0,115160.0,0.04275034]
[1757681981948,1.31543196,115170.0,115160.0,0.04275034]
[1757681985445,0.52399196,115170.0,115160.0,0.04275034]
[1757681985647,1.30229196,115170.0,115160.0,0.05654034]
[1757681986247,0.96631886,115170.0,115160.0,0.05654034]
[1757681989057,0.96632586,115170.0,115160.0,0.05654034]
[1757681990359,0.17492586,115170.0,115160.0,0.03888]
[1757681990559,0.15009196,115170.0,115160.0,0.03888]
[1757681990952,0.94149196,115170.0,115160.0,0.03888]
[1757681991153,0.9663476,115170.0,115160.0,0.03888]
[1757681992558,0.9663476,115170.0,115160.0,0.39968]
[1757681993861,0.84188564,115170.0,115160.0,0.39968]
[1757681994063,0.9663476,115170.0,115160.0,0.39968]
[1757681995269,0.94149196,115170.0,115160.0,0.39968]
[1757682000371,0.15009196,115170.0,115160.0,0.03888]
[1757682000577,0.81695,115170.0,115160.0,0.39968]
[1757682000767,0.94141196,115170.0,115160.0,0.39968]
[1757682004874,0.94141196,115170.0,115160.0,0.03888]
[1757682005178,0.81695,115170.0,115160.0,0.03888]
[1757682005473,0.94141196,115170.0,115160.0,0.03888]
[1757682006981,0.96632186,115170.0,115160.0,0.03888]
[1757682007280,0.94141196,115170.0,115160.0,0.03888]
[1757682007783,0.94133196,115170.0,115160.0,0.03888]
[1757682009382,0.15009196,115170.0,115160.0,0.39968]
[1757682009584,0.94129196,115170.0,115160.0,0.39968]
[1757682010182,0.15009196,115170.0,115160.0,0.39968]
[1757682010382,0.94129196,115170.0,115160.0,0.39968]
[1757682014385,1.00354152,115170.0,115160.0,0.39968]
[1757682018588,0.81683,115170.0,115160.0,0.39968]
[1757682018887,1.00354152,115170.0,115160.0,0.39968]
[1757682019980,1.19025304,115170.0,115160.0,0.39968]
[1757682022087,1.00354152,115170.0,115160.0,0.39968]
[1757682022481,1.19025304,115170.0,115160.0,0.39968]
[1757682022785,1.00354152,115170.0,115160.0,0.39968]
[1757682025887,0.21234152,115170.0,115160.0,0.39968]
[1757682026092,1.00338152,115170.0,115160.0,0.39968]
[1757682027191,0.02563,115170.0,115160.0,0.39968]
[1757682027393,1.00334152,115170.0,115160.0,0.39968]
[1757682029084,0.81663,115170.0,115160.0,0.39968]
[1757682029289,1.00334152,115170.0,115160.0,0.39968]
[1757682030194,0.21234152,115170.0,115160.0,0.39968]
[1757682030396,1.00334152,115170.0,115160.0,0.39968]
[1757682032595,1.00453619,115170.0,115160.0,0.39968]
[1757682033395,0.21353619,115170.0,115160.0,0.39968]
[1757682033591,1.00449619,115170.0,115160.0,0.39968]
[1757682035296,1.02962466,115170.0,115160.0,0.39968]
[1757682042200,1.22542618,115170.0,115160.0,0.39968]
[1757682042506,1.03871466,115170.0,115160.0,0.39968]
[1757682042700,1.22542618,115170.0,115160.0,0.39968]
[1757682042906,1.22542618,115170.0,115160.0,0.38589]
[1757682043204,0.85200314,115170.0,115160.0,0.38589]
[1757682043400,1.22542618,115170.0,115160.0,0.38589]
[1757682043998,1.22542618,115170.0,115160.0,0.004]
[1757682045109,1.58622618,115170.0,115160.0,0.004]
[1757682046807,2.0229377,115170.0,115160.0,0.004]
[1757682047001,0.00914,115160.0,115140.0,0.37455]
[1757682047196,1.01374152,115150.0,115140.0,0.39778]
[1757682047606,1.01493619,115150.0,115140.0,0.39778]
[1757682048105,0.22413619,115150.0,115140.0,0.39778]
[1757682048305,1.01489619,115150.0,115140.0,0.39778]
[1757682048506,1.01493619,115150.0,115140.0,0.39778]
[1757682048901,1.20164771,115150.0,115140.0,0.39778]
[1757682049101,0.41084771,115150.0,115140.0,0.39778]
[1757682049411,1.28267014,115150.0,115140.0,0.39978]
[1757682049907,1.28267014,115150.0,115140.0,0.39778]
[1757682050105,1.28267014,115150.0,115140.0,0.40078]
[1757682050297,1.28527014,115150.0,115140.0,0.40078]
[1757682050608,0.49451014,115150.0,115140.0,0.40078]
[1757682050907,1.28531014,115150.0,115140.0,0.40078]
[1757682051503,1.30578883,115150.0,115140.0,0.38703]
[1757682051708,1.33088634,115150.0,115140.0,0.38703]
[1757682052204,1.30578883,115150.0,115140.0,0.38703]
[1757682052508,1.3308824,115150.0,115140.0,0.38703]
[1757682052908,1.3308824,115150.0,115140.0,0.3638]
[1757682053505,0.5400824,115150.0,115140.0,0.3638]
[1757682053715,0.5400824,115150.0,115140.0,0.38617]
[1757682053716,1.30574883,115150.0,115140.0,0.38617]
[1757682054204,1.30574883,115150.0,115140.0,0.02537]
[1757682054613,1.69162955,115150.0,115140.0,0.02537]
[1757682054806,1.66654883,115150.0,115140.0,0.02537]
[1757682055505,0.87578883,115150.0,115140.0,0.02537]
[1757682055706,1.66654883,115150.0,115140.0,0.02537]
[1757682056006,1.66654883,115150.0,115140.0,0.003]
[1757682057816,0.87578883,115150.0,115140.0,0.003]
[1757682058006,1.66654883,115150.0,115140.0,0.003]
[1757682058608,0.87578883,115150.0,115140.0,0.003]
[1757682058809,1.66654883,115150.0,115140.0,0.003]
[1757682059009,1.66654883,115150.0,115140.0,0.02537]
[1757682061219,0.87578883,115150.0,115140.0,0.02537]
[1757682061817,1.66650883,115150.0,115140.0,0.02537]
[1757682062008,0.87578883,115150.0,115140.0,0.02537]
[1757682062416,1.66650883,115150.0,115140.0,0.02537]
[1757682063023,0.50236579,115150.0,115140.0,0.02537]
[1757682063318,1.66650883,115150.0,115140.0,0.02537]
[1757682065121,0.87578883,115150.0,115140.0,0.02537]
[1757682065622,1.66650883,115150.0,115140.0,0.02537]
[1757682066121,1.66650883,115150.0,115140.0,0.003]
[1757682066620,1.69157068,115150.0,115140.0,0.003]
[1757682070720,1.66650883,115150.0,115140.0,0.003]
[1757682071319,1.69158013,115150.0,115140.0,0.003]
[1757682072017,0.90086013,115150.0,115140.0,0.003]
[1757682072224,1.69150013,115150.0,115140.0,0.003]
[1757682073628,0.90086013,115150.0,115140.0,0.003]
[1757682073925,1.69150013,115150.0,115140.0,0.003]
[1757682074428,1.56717759,115150.0,115140.0,0.003]
[1757682088135,1.69172784,115150.0,115140.0,0.003]
[1757682092744,1.31807709,115150.0,115140.0,0.003]
[1757682092944,1.69172784,115150.0,115140.0,0.003]
[1757682093943,0.90108784,115150.0,115140.0,0.003]
[1757682094147,1.56697759,115150.0,115140.0,0.003]
[1757682096949,1.69152784,115150.0,115140.0,0.003]
[1757682098152,1.31787709,115150.0,115140.0,0.003]
[1757682098345,1.69152784,115150.0,115140.0,0.003]
[1757682101551,1.31787709,115150.0,115140.0,0.003]
[1757682101853,1.56697759,115150.0,115140.0,0.003]
[1757682102047,0.77653759,115150.0,115140.0,0.003]
[1757682102253,1.56693759,115150.0,115140.0,0.003]
[1757682102454,1.56689759,115150.0,115140.0,0.003]
[1757682103753,1.56689759,115150.0,115140.0,0.025]
[1757682104854,0.76335759,115150.0,115140.0,0.03873]
[1757682105056,1.55371759,115150.0,115140.0,0.03873]
[1757682110753,1.30461709,115150.0,115140.0,0.03873]
[1757682111053,1.55371759,115150.0,115140.0,0.03873]
[1757682117465,1.56689759,115150.0,115140.0,0.025]
[1757682117665,0.77653759,115150.0,115140.0,0.025]
[1757682117966,1.56685759,115150.0,115140.0,0.025]
[1757682119767,1.56685759,115150.0,115140.0,0.03806]
[1757682121758,1.56685759,115150.0,115140.0,0.025]
[1757682123570,1.56685759,115150.0,115140.0,0.03806]
[1757682126169,1.20605759,115150.0,115140.0,0.03806]
[1757682126763,0.41573759,115150.0,115140.0,0.03806]
[1757682126964,0.93477592,115150.0,115140.0,0.43025881]
[1757682127163,1.05932617,115150.0,115140.0,0.30570856]
[1757682127668,1.05932617,115150.0,115140.0,0.66650856]
[1757682128372,0.26908617,115150.0,115140.0,0.66650856]
[1757682128673,1.05932617,115150.0,115140.0,0.66450856]
[1757682129872,1.05732617,115150.0,115140.0,0.66450856]
[1757682130076,1.05832617,115150.0,115140.0,0.66450856]
[1757682133976,0.93377592,115150.0,115140.0,0.66450856]
[1757682134176,1.05832617,115150.0,115140.0,0.66450856]
[1757682134673,1.09224763,115150.0,115140.0,0.66450856]
[1757682135473,1.06717633,115150.0,115140.0,0.66450856]
[1757682136582,1.14633016,115150.0,115140.0,0.66450856]
[1757682142677,1.3840357,115150.0,115140.0,0.66450856]
[1757682144883,1.3931757,115150.0,115140.0,0.30370856]
[1757682145584,1.3931757,115150.0,115140.0,0.66450856]
[1757682145782,1.3931757,115150.0,115140.0,0.30370856]
[1757682146677,1.3931757,115150.0,115140.0,0.29064856]
[1757682146878,0.91776462,115150.0,115140.0,0.29064856]
[1757682147082,1.3931757,115150.0,115140.0,0.29064856]
[1757682148086,1.37269701,115150.0,115140.0,0.273]
[1757682148888,0.58253701,115150.0,115140.0,0.273]
[1757682149080,1.37261701,115150.0,115140.0,0.6338]
[1757682149281,1.37261701,115150.0,115140.0,0.64689]
[1757682150087,1.39773226,115150.0,115140.0,0.64689]
[1757682151485,1.39773226,115150.0,115140.0,0.28609]
[1757682152100,1.39773226,115150.0,115140.0,0.64689]
[1757682153897,1.38859226,115150.0,115140.0,0.64689]
[1757682154289,0.91318118,115150.0,115140.0,0.64689]
[1757682154488,1.38859226,115150.0,115140.0,0.64689]
[1757682155193,1.36347701,115150.0,115140.0,0.64689]
[1757682156304,1.38861194,115150.0,115140.0,0.64689]
[1757682159407,1.38861194,115150.0,115140.0,0.39689]
[1757682164309,1.36347701,115150.0,115140.0,0.39689]
[1757682164502,1.38861198,115150.0,115140.0,0.39689]
[1757682165502,1.36347701,115150.0,115140.0,0.39689]
[1757682166207,1.38861191,115150.0,115140.0,0.39689]
[1757682177618,1.15070637,115150.0,115140.0,0.39689]
[1757682177813,1.05543021,115150.0,115140.0,0.87230108]
[1757682178319,1.05543021,115150.0,115140.0,0.63459554]
[1757682179318,1.05543021,115150.0,115140.0,0.39689]
[1757682179518,1.05543021,115150.0,115140.0,0.63459554]
[1757682181122,1.05543021,115150.0,115140.0,0.64338714]
[1757682181622,1.05543021,115150.0,115140.0,0.63459554]
[1757682181821,0.81772467,115150.0,115140.0,0.63459554]
[1757682182024,1.05543021,115150.0,115140.0,0.63459554]
[1757682185129,0.26555021,115150.0,115140.0,0.63459554]
[1757682185322,1.05535021,115150.0,115140.0,0.63459554]
[1757682187627,1.05535021,115150.0,115140.0,0.64320451]
[1757682190629,0.79455467,115150.0,115140.0,0.64320451]
[1757682190928,1.03226021,115150.0,115140.0,0.64320451]
[1757682191231,1.05557021,115150.0,115140.0,0.40549897]
[1757682191430,1.05557021,115150.0,115140.0,0.63459554]
[1757682191831,1.05557021,115150.0,115140.0,0.39689]
[1757682192032,1.05557021,115150.0,115140.0,0.63459554]
[1757682194627,0.81782467,115150.0,115140.0,0.63459554]
[1757682194826,1.05553021,115150.0,115140.0,0.39689]
[1757682195027,1.05553021,115150.0,115140.0,0.63459554]
[1757682195333,1.05553021,115150.0,115140.0,0.64323236]
[1757682195828,1.05553021,115150.0,115140.0,0.63459554]
[1757682197329,1.05553021,115150.0,115140.0,0.64333246]
[1757682198334,1.05553021,115150.0,115140.0,0.40562692]
[1757682198533,0.97627153,115150.0,115140.0,0.56407378]
[1757682199436,0.81782467,115150.0,115140.0,0.56407378]
[1757682199734,0.00479467,115150.0,115140.0,0.97252064]
[1757682199932,0.79447467,115150.0,115140.0,0.97252064]
[1757682200237,0.00479467,115150.0,115140.0,0.97252064]
[1757682201433,0.00479467,115150.0,115140.0,1.04264723]
[1757682204039,0.00479467,115150.0,115140.0,1.83228723]
[1757682205039,0.00479467,115150.0,115140.0,1.04264723]
[1757682206436,0.00479467,115150.0,115140.0,1.03391031]
[1757682206738,0.00479467,115150.0,115140.0,0.87546345]
[1757682208238,0.00479467,115150.0,115140.0,0.88427663]
[1757682208443,0.00479467,115150.0,115140.0,1.04272349]
[1757682208843,0.00479467,115150.0,115140.0,0.88427663]
[1757682209140,0.00479467,115150.0,115140.0,1.04272349]
[1757682211946,0.00479467,115150.0,115140.0,0.88427663]
[1757682212153,0.00479467,115150.0,115140.0,0.72582977]
[1757682212447,0.00479467,115150.0,115140.0,1.04272349]
[1757682213748,0.00479467,115150.0,115140.0,1.03391031]
[1757682213941,0.00479467,115150.0,115140.0,0.87546345]
[1757682215049,0.00479467,115150.0,115140.0,0.8841008]
[1757682217948,0.00479467,115150.0,115140.0,0.87546345]
[1757682219048,0.00479467,115150.0,115140.0,0.88413475]
[1757682219350,0.00479467,115150.0,115140.0,0.63413475]
[1757682230549,0.02743467,115150.0,115140.0,0.47568789]
[1757682230752,0.02743467,115150.0,115140.0,0.39689]
[1757682230949,0.02743467,115150.0,115140.0,0.55533686]
[1757682232754,0.43588153,115150.0,115140.0,0.39689]
[1757682234049,0.62390796,115150.0,115140.0,0.39689]
[1757682234258,0.62390796,115150.0,115140.0,0.023]
[1757682234454,0.30701424,115150.0,115140.0,0.023]
[1757682234659,1.2548211,115150.0,115140.0,0.023]
[1757682235259,0.4654611,115150.0,115140.0,0.0357]
[1757682235458,1.2548211,115150.0,115140.0,0.3965]
[1757682235656,1.2548211,115150.0,115140.0,0.0357]
[1757682236253,1.6156211,115150.0,115140.0,0.023]
[1757682236455,1.2548211,115150.0,115140.0,0.023]
[1757682238656,1.41326796,115150.0,115140.0,0.023]
[1757682238857,1.09637424,115150.0,115140.0,0.023]
[1757682239057,1.2548211,115150.0,115140.0,0.023]
[1757682242758,1.41326796,115150.0,115140.0,0.001]
[1757682242963,1.43905264,115150.0,115140.0,0.001]
[1757682243163,1.79985264,115150.0,115140.0,0.001]
[1757682245866,1.79989264,115150.0,115140.0,0.001]
[1757682249159,1.01049264,115150.0,115140.0,0.001]
[1757682249363,1.79989264,115150.0,115140.0,0.001]
[1757682250163,1.01049264,115150.0,115140.0,0.001]
[1757682251062,1.79989264,115150.0,115140.0,0.001]
[1757682253164,1.01049264,115150.0,115140.0,0.001]
[1757682253367,1.79989264,115150.0,115140.0,0.001]
[1757682254365,1.79989264,115150.0,115120.0,0.3915333]
[1757682254567,0.18172686,115130.0,115120.0,0.4135733]
[1757682254868,0.97112686,115130.0,115120.0,0.4135733]
[1757682255362,0.18292153,115130.0,115120.0,0.4135733]
[1757682255567,0.97232153,115130.0,115120.0,0.4135733]
[1757682256773,0.97432153,115130.0,115120.0,0.4135733]
[1757682257867,0.98303338,115130.0,115120.0,0.4135733]
[1757682258767,0.02647467,115130.0,115120.0,0.4135733]
[1757682258967,0.18752153,115130.0,115120.0,0.4135733]
[1757682259170,0.97692153,115130.0,115120.0,0.4135733]
[1757682260370,1.05627158,115130.0,115120.0,0.4135733]
[1757682260762,0.26687158,115130.0,115120.0,0.4135733]
[1757682260962,1.05627158,115130.0,115120.0,0.4135733]
[1757682262073,1.06515725,115130.0,115120.0,0.4135733]
[1757682262473,1.05627158,115130.0,115120.0,0.4135733]
[1757682264278,0.26687158,115130.0,115120.0,0.4135733]
[1757682264676,1.05627158,115130.0,115120.0,0.65137021]
[1757682271785,0.81847467,115130.0,115120.0,0.65137021]
[1757682271973,1.05627158,115130.0,115120.0,0.65137021]
[1757682273980,1.05627158,115130.0,115120.0,0.4135733]
[1757682274381,0.81847467,115130.0,115120.0,0.4135733]
[1757682274583,1.05627158,115130.0,115120.0,0.65137021]
[1757682274776,1.05627158,115130.0,115120.0,0.4135733]
[1757682274976,1.05627158,115130.0,115120.0,0.65137021]
[1757682275981,1.05627158,115130.0,115120.0,0.4135733]
[1757682276182,1.05627158,115130.0,115120.0,0.65137021]
[1757682277180,1.05627158,115130.0,115120.0,0.4135733]
[1757682277378,1.05627158,115130.0,115120.0,0.65137021]
[1757682278576,1.05627158,115130.0,115120.0,0.4135733]
[1757682284386,0.81847467,115130.0,115120.0,0.4135733]
[1757682284588,1.05627158,115130.0,115120.0,0.65137021]
[1757682294889,1.05627158,115130.0,115120.0,0.4135733]
[1757682295093,1.05627158,115130.0,115120.0,0.65137021]
[1757682296596,1.05627158,115130.0,115120.0,0.4135733]
[1757682298298,0.02907467,115130.0,115120.0,0.65137021]
[1757682298498,1.05607158,115130.0,115120.0,0.65137021]
[1757682299899,0.81827467,115130.0,115120.0,0.4135733]
[1757682300099,1.05607158,115130.0,115120.0,0.65137021]
[1757682306401,1.05607158,115130.0,115120.0,0.4135733]
[1757682306798,1.05607158,115130.0,115120.0,0.65137021]
[1757682307706,0.26687158,115130.0,115120.0,0.65137021]
[1757682307908,1.05603158,115130.0,115120.0,0.65137021]
[1757682311405,0.26687158,115130.0,115120.0,0.65137021]
[1757682311606,1.05603158,115130.0,115120.0,0.65137021]
[1757682313705,1.05603158,115130.0,115120.0,0.4135733]
[1757682314108,1.05603158,115130.0,115120.0,0.65137021]
[1757682315207,0.02907467,115130.0,115120.0,0.65137021]
[1757682315509,1.05599158,115130.0,115120.0,0.65137021]
[1757682319006,1.29378849,115130.0,115120.0,0.4135733]
[1757682319311,0.03589,115120.0,115110.0,0.39681]
[1757682319511,0.51267849,115120.0,115110.0,0.39681]
[1757682320006,1.28917849,115120.0,115110.0,0.63460691]
[1757682320212,0.50005849,115120.0,115110.0,0.63460691]
[1757682320514,0.02446467,115120.0,115110.0,0.63460691]
[1757682320813,0.64715158,115120.0,115110.0,0.63460691]
[1757682321011,0.00219467,115120.0,115110.0,0.63460691]
[1757682321215,0.79131467,115120.0,115110.0,0.63460691]
[1757682321416,1.02911158,115120.0,115110.0,0.63460691]
[1757682321615,1.02911158,115120.0,115110.0,0.63560691]
[1757682321818,1.05238158,115120.0,115110.0,0.63560691]
[1757682322416,0.81458467,115120.0,115110.0,0.5563312]
[1757682322717,0.81718467,115120.0,115110.0,0.5563312]
[1757682327319,0.02806467,115120.0,115110.0,0.5563312]
[1757682327511,0.58134467,115120.0,115110.0,0.5563312]
[1757682332620,0.73986587,115120.0,115110.0,0.39781]
[1757682332823,0.73986587,115120.0,115110.0,0.5563312]
[1757682339524,0.58134467,115120.0,115110.0,0.5563312]
[1757682339722,0.73986587,115120.0,115110.0,0.5563312]
[1757682341224,0.18658587,115120.0,115110.0,0.39781]
[1757682341426,0.97562587,115120.0,115110.0,0.39781]
[1757682346332,0.97562587,115120.0,115110.0,0.5563312]
[1757682354437,0.81710467,115120.0,115110.0,0.5563312]
[1757682354736,0.97562587,115120.0,115110.0,0.5563312]
[1757682356231,0.97562587,115120.0,115110.0,0.39781]
[1757682356436,1.16318985,115120.0,115110.0,0.3618]
[1757682356635,1.41318985,115120.0,115110.0,0.3618]
[1757682357037,1.41318985,115120.0,115110.0,0.38296]
[1757682357833,1.41318985,115120.0,115110.0,0.39164]
[1757682363037,1.16318985,115120.0,115110.0,0.39164]
[1757682363237,1.16318985,115120.0,115110.0,0.37048]
[1757682365338,1.16318985,115120.0,115110.0,0.00968]
[1757682366438,0.37414985,115120.0,115110.0,0.00968]
[1757682366638,1.16314985,115120.0,115110.0,0.00968]
[1757682366837,1.57167105,115120.0,115110.0,0.00968]
[1757682367044,1.95826647,115120.0,115110.0,0.00968]
[1757682367438,1.16926647,115120.0,115110.0,1e-08]
[1757682367638,1.95826647,115120.0,115110.0,1e-08]
[1757682367937,3.62694647,115120.0,115110.0,1e-08]
[1757682368641,2.83794647,115120.0,115110.0,1e-08]
[1757682368843,0.02105,115090.0,115080.0,0.39569]
[1757682369045,0.8015312,115090.0,115080.0,0.39569]
[1757682369243,0.1795712,115090.0,115080.0,0.39569]
[1757682369542,0.18076587,115090.0,115080.0,0.40427266]
[1757682369739,0.91392587,115090.0,115080.0,0.40427266]
[1757682369942,0.96976587,115090.0,115080.0,0.40427266]
[1757682370447,0.96976587,115090.0,115080.0,0.40827266]
[1757682370650,0.18076587,115090.0,115080.0,0.40827266]
[1757682370843,0.96976587,115090.0,115080.0,0.40827266]
[1757682371039,0.97176587,115090.0,115080.0,0.40827266]
[1757682371750,0.97436587,115090.0,115080.0,0.40827266]
[1757682375546,0.97440587,115090.0,115080.0,0.56679386]
[1757682375748,0.79483467,115090.0,115080.0,0.97531506]
[1757682376248,0.79483467,115090.0,115080.0,0.65827266]
[1757682376547,0.79483467,115090.0,115080.0,0.81679386]
[1757682376750,0.81588467,115090.0,115080.0,0.81679386]
[1757682376950,0.79483467,115090.0,115080.0,0.81679386]
[1757682377150,0.00579467,115090.0,115080.0,0.81679386]
[1757682377448,0.55899467,115090.0,115080.0,0.81679386]
[1757682378352,0.02684467,115090.0,115080.0,0.81679386]
[1757682379554,0.02684467,115090.0,115080.0,0.65827266]
[1757682379851,0.02684467,115090.0,115080.0,0.81679386]
[1757682380550,0.02684467,115090.0,115080.0,0.65827266]
[1757682380754,0.02684467,115090.0,115080.0,0.81679386]
[1757682381052,0.02684467,115090.0,115080.0,0.65827266]
[1757682381254,0.02684467,115090.0,115080.0,0.8082112]
[1757682382049,0.18536587,115090.0,115080.0,0.8082112]
[1757682382449,0.26476747,115090.0,115080.0,0.8876128]
[1757682382650,0.26476747,115090.0,115080.0,0.64969]
[1757682382851,0.26476747,115090.0,115080.0,0.89646234]
[1757682383355,0.26476747,115090.0,115080.0,0.8876128]
[1757682384462,0.51531027,115090.0,115080.0,0.38596]
[1757682386756,0.76531027,115090.0,115080.0,0.02516]
[1757682386964,0.76531027,115090.0,115080.0,0.004]
[1757682388058,1.55435027,115090.0,115080.0,0.004]
[1757682388365,1.62483383,115090.0,115080.0,0.004]
[1757682393762,1.14898823,115090.0,115080.0,0.02617]
[1757682393969,1.62483383,115090.0,115080.0,0.02617]